fUSD/lending_fUSD_20250213
["ID","MTS","AMOUNT","RATE_DAILY","PERIOD"]
[352958565,1739461745244,-150.0,0.00012723,2]
[352958566,1739461745265,-1631.18,0.00012726,2]
[352958567,1739461745288,-664.3,0.0001277,2]
[352958568,1739461745311,-1000.0,0.0001279,2]
[352958569,1739461745332,-150.0,0.00012795,2]
[352958570,1739461745354,-1998.59,0.00012817,2]
[352958571,1739461745377,-300.0,0.00012833,2]
[352958572,1739461745403,-23900.0,0.00012834,2]
[352958573,1739461745424,-2480.78,0.00012872,2]
[352958574,1739461745446,-186.87,0.00012921,2]
[352958575,1739461745468,-600.0,0.00012934,2]
[352958576,1739461745489,-250.0,0.00012936,2]
[352958577,1739461745510,-150.0,0.00013041,2]
[352958578,1739461745533,-170.32,0.00013077,2]
[352958579,1739461745555,-150.0,0.00013195,2]
[352958580,1739461745577,-700.0,0.000132,4]
[352958581,1739461745599,-181.23863571,0.00013208,2]
[352958582,1739461745622,-700.0,0.00013208,2]
[352958583,1739461745644,-387.70639142,0.00013236,2]
[352958584,1739461745671,-1779.0,0.00013255,2]
[352958585,1739461745693,-775.17,0.000133,2]
[352958586,1739461745715,-594.23,0.000133,2]
[352958587,1739461745739,-1400.0,0.000133,4]
[352958588,1739461745761,-438.93,0.00013378,2]
[352958589,1739461745786,-150.0,0.00013378,2]
[352958590,1739461745810,-150.0,0.00013378,2]
[352958591,1739461745832,-150.0,0.00013378,2]
[352958592,1739461745854,-150.0,0.00013378,2]
[352958593,1739461745875,-150.0,0.00013378,2]
[352958594,1739461745895,-438.93,0.00013378,2]
[352958595,1739461745918,-904.95340997,0.00013399,2]
[352958596,1739461745939,-2100.0,0.000134,4]
[352958597,1739461745961,-438.88,0.00013425,2]
[352958598,1739461745982,-150.0,0.0001343,2]
[352958599,1739461746008,-150.0,0.0001343,2]
[352958600,1739461752946,684.4633502,0.00012952,2]
[352958601,1739461752967,481.1766498,0.00012952,2]
[352958602,1739461753617,438.59,0.0001337,2]
[352958603,1739461753645,150.0,0.00013378,2]
[352958604,1739461770445,700.0,0.00011564,2]
[352958605,1739461772053,700.0,0.00012934,2]
[352958606,1739461824003,181.23863571,0.00013407,2]
[352958608,1739461831974,600.0,0.00011564,2]
[352958609,1739461832948,-2900.0,0.000135,4]
[352958612,1739461832958,-500.0,0.00013507,2]
[352958615,1739461832968,-3600.0,0.000136,4]
[352958617,1739461832979,-150.0,0.00013666,2]
[352958618,1739461832988,-151.08,0.00013699,2]
[352958619,1739461832998,-700.0,0.000137,5]
[352958620,1739461833007,-700.0,0.000138,5]
[352958621,1739461833017,-1436.00918,0.0001386,2]
[352958622,1739461833027,-4044.98224696,0.00013895,2]
[352958623,1739461833039,-700.0,0.000139,5]
[352958624,1739461833048,-43975.97499407,0.000139,2]
[352958625,1739461833060,-17740.02500593,0.000139,2]
[352958626,1739461833071,-4044.98224687,0.00013918,2]
[352958627,1739461833080,-150.0,0.0001393,2]
[352958628,1739461833090,-150.0,0.0001393,2]
[352958629,1739461833099,-1000.0,0.00013934,2]
[352958630,1739461833109,-4044.98224687,0.00013941,2]
[352958631,1739461833121,-779.45488053,0.00013941,2]
[352958632,1739461833133,-220.54511947,0.00013941,2]
[352958633,1739461833143,-353.88259651,0.00013943,2]
[352958634,1739461833152,-150.0,0.00013951,2]
[352958635,1739461833162,-150.0,0.00013961,2]
[352958636,1739461833172,-407.84948769,0.00013961,2]
[352958637,1739461833181,-4044.98224687,0.00013963,2]
[352958638,1739461833191,-150.0,0.00013968,2]
[352958639,1739461833200,-1952.2623,0.00013973,2]
[352958640,1739461833209,-161.97289749,0.00013977,2]
[352958641,1739461833219,-164.08037533,0.00013978,2]
[352958642,1739461833229,-150.0,0.00013979,2]
[352958643,1739461833238,-1920.66,0.00013984,2]
[352958644,1739461833247,-1920.66,0.00013985,2]
[352958645,1739461833257,-4044.98224687,0.00013986,2]
[352958646,1739461833266,-1181.04,0.00013993,2]
[352958647,1739461833275,-2653.83,0.00013993,2]
[352958648,1739461833285,-4176.58,0.00013993,2]
[352958649,1739461833294,-1272.83753977,0.00013993,2]
[352958650,1739461833307,-1182.65246023,0.00013993,2]
[352958651,1739461833316,-1842.13,0.00013993,2]
[352958652,1739461833325,-3558.89,0.00013993,2]
[352958653,1739461833339,-2574.31,0.00013993,2]
[352958654,1739461833349,-975.77328822,0.00013993,2]
[352958663,1739461833776,600.0,0.00012934,2]
[352959198,1739461839538,-1467.62671178,0.00013993,2]
[352959200,1739461839548,-500.0,0.00013993,2]
[352959202,1739461839557,-57.8192446,0.00013993,2]
[352959204,1739461839568,-727.03045896,0.00013993,2]
[352959206,1739461839581,-2407.63029644,0.00013993,2]
[352959208,1739461839592,-3322.92,0.00013993,2]
[352959210,1739461839601,-4505.43,0.00013993,2]
[352959212,1739461839610,-2010.78,0.00013993,2]
[352959214,1739461839620,-3760.44,0.00013993,2]
[352959216,1739461839629,-5108.62,0.00013993,2]
[352959218,1739461839639,-3126.73,0.00013993,2]
[352959220,1739461839649,-2888.09,0.00013993,2]
[352959222,1739461839658,-500.0,0.00013993,2]
[352959224,1739461839667,-2224.65,0.00013993,2]
[352959226,1739461839677,-500.0,0.00013993,2]
[352959228,1739461839686,-4872.44,0.00013993,2]
[352959230,1739461839695,-1394.52,0.00013993,2]
[352959232,1739461839705,-2112.92,0.00013993,2]
[352959234,1739461839714,-2700.12,0.00013993,2]
[352959236,1739461839723,-814.12,0.00013993,2]
[352959238,1739461839734,-500.0,0.00013993,2]
[352959240,1739461839743,-500.0,0.00013993,2]
[352959242,1739461839753,-1377.82,0.00013993,2]
[352959244,1739461839763,-1914.72,0.00013993,2]
[352959246,1739461839773,-500.0,0.00013993,2]
[352959248,1739461839783,-460.65860412,0.00013993,2]
[352959250,1739461839792,-1151.36,0.00013993,2]
[352959252,1739461839801,-1562.31,0.00013993,2]
[352959254,1739461839811,-1353.11,0.00013994,2]
[352959256,1739461839820,-500.0,0.00013994,2]
[352959258,1739461839830,-500.0,0.00013994,2]
[352959259,1739461839840,-566.01,0.00013994,2]
[352959262,1739461839850,-586.42,0.00013994,2]
[352959263,1739461839859,-1441.06,0.00013994,2]
[352959266,1739461839868,-500.0,0.00013994,2]
[352959267,1739461839878,-527.03,0.00013994,2]
[352959269,1739461839888,-1124.73,0.00013994,2]
[352959271,1739461839897,-500.0,0.00013994,2]
[352959273,1739461839907,-1896.78,0.00013994,2]
[352959275,1739461839917,-70.29826266,0.00013994,2]
[352959277,1739461839930,-1417.88173734,0.00013994,2]
[352959279,1739461839940,-500.0,0.00013994,2]
[352959281,1739461839950,-1871.24,0.00013994,2]
[352959283,1739461839959,-912.02,0.00013994,2]
[352959285,1739461839969,-1102.81,0.00013994,2]
[352959287,1739461839981,-1761.1,0.00013994,2]
[352959289,1739461839991,-1011.06,0.00013994,2]
[352959291,1739461840000,-560.08,0.00013994,2]
[352959293,1739461840010,-818.82,0.00013994,2]
[352959295,1739461840019,-1040.49,0.00013994,2]
[352959297,1739461840029,-687.21,0.00013994,2]
[352959299,1739461840042,-809.69,0.00013994,2]
[352959301,1739461840053,-2005.096522,0.00013994,2]
[352959303,1739461840062,-500.0,0.00013994,2]
[352959305,1739461840072,-500.0,0.00013994,2]
[352959324,1739461840254,-159.282857,0.00013994,2]
[352959326,1739461840265,-1364.15,0.00013994,2]
[352959328,1739461840274,-505.94,0.00013994,2]
[352959330,1739461840284,-910.98,0.00013994,2]
[352959332,1739461840293,-500.0,0.00013994,2]
[352959334,1739461840303,-899.249842,0.00013994,2]
[352959336,1739461840313,-1580.2,0.00013994,2]
[352959338,1739461840324,-500.0,0.00013994,2]
[352959340,1739461840334,-765.15,0.00013994,2]
[352959342,1739461840343,-1135.81,0.00013994,2]
[352959344,1739461840353,-500.0,0.00013994,2]
[352959346,1739461840363,-854.8,0.00013994,2]
[352959348,1739461840373,-317.50264656,0.00013994,2]
[352959350,1739461840383,-1849.29,0.00013994,2]
[352959352,1739461840393,-500.0,0.00013994,2]
[352959354,1739461840403,-372.61030111,0.00013994,2]
[352959356,1739461840413,-500.0,0.00013994,2]
[352959358,1739461840423,-516.1,0.00013994,2]
[352959360,1739461840433,-500.0,0.00013994,2]
[352959362,1739461840442,-500.0,0.00013994,2]
[352959364,1739461840451,-750.6,0.00013994,2]
[352959366,1739461840460,-503.41885983,0.00013994,2]
[352959368,1739461840470,-500.0,0.00013994,2]
[352959370,1739461840480,-587.5813252,0.00013994,2]
[352959372,1739461840490,-500.0,0.00013994,2]
[352959374,1739461840500,-500.0,0.00013994,2]
[352959376,1739461840509,-500.0,0.00013994,2]
[352959378,1739461840519,-370.92956257,0.00013994,2]
[352959380,1739461840529,-500.0,0.00013994,2]
[352959382,1739461840539,-991.88,0.00013994,2]
[352959384,1739461840548,-500.0,0.00013994,2]
[352959386,1739461840558,-500.0,0.00013994,2]
[352959387,1739461840569,-587.34234884,0.00013994,2]
[352959388,1739461840579,-500.84408562,0.00013994,2]
[352959389,1739461840589,-500.0,0.00013994,2]
[352959390,1739461840599,-500.0,0.00013994,2]
[352959391,1739461840609,-568.72,0.00013994,2]
[352959392,1739461840619,-500.0,0.00013994,2]
[352959393,1739461840629,-950.77,0.00013994,2]
[352959394,1739461840639,-500.0,0.00013994,2]
[352959395,1739461840649,-500.0,0.00013994,2]
[352959396,1739461840659,-752.15,0.00013994,2]
[352959397,1739461840669,-500.0,0.00013994,2]
[352959399,1739461840679,-664.09,0.00013994,2]
[352959400,1739461840689,-500.0,0.00013994,2]
[352959402,1739461840699,-500.0,0.00013994,2]
[352959404,1739461840709,-500.0,0.00013994,2]
[352959406,1739461840719,-1224.1,0.00013994,2]
[352959408,1739461840728,-500.0,0.00013994,2]
[352959410,1739461840738,-500.0,0.00013994,2]
[352959412,1739461840748,-500.0,0.00013994,2]
[352959413,1739461840758,-820.51,0.00013994,2]
[352959415,1739461840768,-997.25,0.00013994,2]
[352959418,1739461840778,-500.0,0.00013994,2]
[352959420,1739461840788,-549.11,0.00013994,2]
[352959422,1739461840798,-500.0,0.00013994,2]
[352959424,1739461840807,-1794.26,0.00013994,2]
[352959425,1739461840817,-500.0,0.00013994,2]
[352959427,1739461840826,-880.09,0.00013994,2]
[352959429,1739461840835,-500.0,0.00013994,2]
[352959431,1739461840846,-764.66,0.00013994,2]
[352959433,1739461840855,-500.0,0.00013994,2]
[352959436,1739461840868,-500.0,0.00013994,2]
[352959437,1739461840878,-946.72,0.00013994,2]
[352959439,1739461840887,-500.0,0.00013994,2]
[352959441,1739461840896,-1992.81,0.00013994,2]
[352959443,1739461840906,-500.0,0.00013994,2]
[352959445,1739461840915,-538.54042011,0.00013994,2]
[352959447,1739461840925,-500.0,0.00013994,2]
[352959449,1739461840935,-500.0,0.00013994,2]
[352959451,1739461840944,-500.0,0.00013994,2]
[352959453,1739461840954,-500.0,0.00013994,2]
[352959456,1739461840964,-1134.63,0.00013994,2]
[352959457,1739461840973,-500.0,0.00013994,2]
[352959460,1739461840983,-500.0,0.00013994,2]
[352959462,1739461840993,-500.0,0.00013994,2]
[352959464,1739461841003,-4098.61,0.00013994,2]
[352959465,1739461841012,-500.0,0.00013994,2]
[352959467,1739461841021,-500.0,0.00013994,2]
[352959471,1739461841034,-1877.55,0.00013994,2]
[352959473,1739461841045,-500.0,0.00013994,2]
[352959477,1739461841055,-500.0,0.00013994,2]
[352959480,1739461841065,-902.78,0.00013994,2]
[352959482,1739461841075,-1777.56,0.00013994,2]
[352959484,1739461841084,-868.93,0.00013994,2]
[352959486,1739461841094,-500.0,0.00013994,2]
[352959488,1739461841104,-222.83983979,0.00013994,2]
[352959490,1739461841114,-500.0,0.00013994,2]
[352959492,1739461841124,-726.82,0.00013994,2]
[352959494,1739461841134,-500.0,0.00013994,2]
[352959496,1739461841143,-500.0,0.00013994,2]
[352959498,1739461841152,-2262.15,0.00013994,2]
[352959500,1739461841162,-500.0,0.00013994,2]
[352959502,1739461841171,-2880.58,0.00013994,2]
[352959504,1739461841180,-1035.32,0.00013994,2]
[352959506,1739461841189,-3913.4,0.00013994,2]
[352959508,1739461841199,-365.16761655,0.00013994,2]
[352959510,1739461841209,-2886.08,0.00013994,2]
[352959512,1739461841218,-500.0,0.00013994,2]
[352959514,1739461841227,-500.0,0.00013994,2]
[352959516,1739461841238,-1914.65,0.00013994,2]
[352959518,1739461841247,-1960.95,0.00013994,2]
[352959520,1739461841257,-500.0,0.00013994,2]
[352959522,1739461841266,-500.0,0.00013994,2]
[352959524,1739461841276,-504.42265912,0.00013994,2]
[352959526,1739461841285,-500.0,0.00013994,2]
[352959528,1739461841295,-500.0,0.00013994,2]
[352959530,1739461841304,-2067.79,0.00013994,2]
[352959532,1739461841314,-1743.94,0.00013994,2]
[352959534,1739461841323,-500.0,0.00013994,2]
[352959536,1739461841333,-500.0,0.00013994,2]
[352959538,1739461841343,-1495.03,0.00013994,2]
[352959540,1739461841352,-803.37,0.00013994,2]
[352959542,1739461841362,-500.0,0.00013994,2]
[352959544,1739461841371,-500.0,0.00013994,2]
[352959546,1739461841381,-520.81,0.00013994,2]
[352959548,1739461841390,-500.0,0.00013994,2]
[352959550,1739461841400,-2715.57,0.00013994,2]
[352959552,1739461841409,-500.0,0.00013994,2]
[352959554,1739461841419,-500.0,0.00013994,2]
[352959556,1739461841429,-243.0590573,0.00013994,2]
[352959558,1739461841444,-1042.5809427,0.00013994,2]
[352959560,1739461841453,-500.0,0.00013994,2]
[352959562,1739461841463,-3069.01,0.00013994,2]
[352959564,1739461841472,-500.0,0.00013994,2]
[352959566,1739461841483,-1501.34,0.00013994,2]
[352959568,1739461841493,-500.0,0.00013994,2]
[352959570,1739461841502,-1629.27,0.00013994,2]
[352959572,1739461841512,-504.34625767,0.00013994,2]
[352959574,1739461841521,-496.32407761,0.00013994,2]
[352959576,1739461841533,-3.67592239,0.00013994,2]
[352959578,1739461841543,-476.68907761,0.00013994,2]
[352959581,1739461841554,-23.31092239,0.00013994,2]
[352959583,1739461841564,-1030.68,0.00013994,2]
[352959585,1739461841574,-500.0,0.00013994,2]
[352959587,1739461841583,-966.83,0.00013994,2]
[352959589,1739461841592,-676.36,0.00013994,2]
[352959591,1739461841602,-500.0,0.00013994,2]
[352959593,1739461841611,-3200.84,0.00013994,2]
[352959594,1739461841621,-828.37,0.00013994,2]
[352959596,1739461841631,-2592.5,0.00013994,2]
[352959598,1739461841640,-506.13060911,0.00013994,2]
[352959600,1739461841650,-1289.66,0.00013994,2]
[352959602,1739461841660,-500.0,0.00013994,2]
[352959605,1739461841670,-500.0,0.00013994,2]
[352959607,1739461841680,-3643.77,0.00013994,2]
[352959609,1739461841690,-500.0,0.00013994,2]
[352959611,1739461841700,-500.0,0.00013994,2]
[352959613,1739461841710,-2921.99445867,0.00013994,2]
[352959615,1739461841723,-832.40554133,0.00013994,2]
[352959617,1739461841734,-591.88,0.00013994,2]
[352959619,1739461841744,-2135.28,0.00013994,2]
[352959621,1739461841753,-500.0,0.00013994,2]
[352959623,1739461841763,-500.0,0.00013994,2]
[352959625,1739461841773,-402.15581975,0.00013994,2]
[352959642,1739461841935,-87.59349008,0.00013994,2]
[352959774,1739461843346,-500.0,0.00013993,2]
[352959777,1739461843363,-10.25069017,0.00013994,2]
[352959780,1739461843379,-301.01503119,0.00013994,2]
[352959782,1739461843394,-1563.11686746,0.00013994,2]
[352959785,1739461843412,-867.51146052,0.00013994,2]
[352959788,1739461843431,-420.21167202,0.00013994,2]
[352959791,1739461843446,-229.63734127,0.00013994,2]
[352959793,1739461843464,-270.36265873,0.00013994,2]
[352959796,1739461843480,-500.0,0.00013994,2]
[352959798,1739461843495,-73.98207973,0.00013994,2]
[352959801,1739461843514,-927.740244,0.00013994,2]
[352959839,1739461843689,-2134.34767627,0.00013994,2]
[352959841,1739461843705,-1062.64,0.00013994,2]
[352959844,1739461843721,-500.0,0.00013994,2]
[352959847,1739461843735,-500.0,0.00013994,2]
[352959849,1739461843751,-500.0,0.00013994,2]
[352959852,1739461843769,-500.0,0.00013994,2]
[352959854,1739461843785,-3038.35,0.00013994,2]
[352959857,1739461843800,-500.0,0.00013994,2]
[352959860,1739461843815,-4925.45,0.00013994,2]
[352959862,1739461843830,-1898.9,0.00013994,2]
[352959865,1739461843847,-500.0,0.00013994,2]
[352959867,1739461843862,-2048.75,0.00013994,2]
[352959868,1739461843877,-500.0,0.00013994,2]
[352959869,1739461843894,-500.0,0.00013994,2]
[352959870,1739461843909,-503.12398702,0.00013994,2]
[352959871,1739461843924,-500.0,0.00013994,2]
[352959872,1739461843939,-3070.94,0.00013994,2]
[352959873,1739461843953,-533.65,0.00013994,2]
[352959876,1739461843969,-500.0,0.00013994,2]
[352959878,1739461843986,-500.0,0.00013994,2]
[352959881,1739461844002,-2702.48,0.00013994,2]
[352959884,1739461844018,-531.34840593,0.00013994,2]
[352959886,1739461844035,-4818.06,0.00013994,2]
[352959889,1739461844050,-578.15,0.00013994,2]
[352959891,1739461844066,-500.0,0.00013994,2]
[352959894,1739461844082,-500.0,0.00013994,2]
[352959896,1739461844097,-500.0,0.00013994,2]
[352959899,1739461844114,-522.01,0.00013994,2]
[352959902,1739461844130,-1640.34,0.00013994,2]
[352959904,1739461844145,-500.0,0.00013994,2]
[352959906,1739461844156,-9523.41,0.00013994,2]
[352959908,1739461844165,-3335.84,0.00013994,2]
[352959910,1739461844175,-500.0,0.00013994,2]
[352959912,1739461844184,-500.0,0.00013994,2]
[352959914,1739461844193,-626.54,0.00013994,2]
[352959916,1739461844203,-500.0,0.00013994,2]
[352959918,1739461844212,-500.0,0.00013994,2]
[352959920,1739461844221,-4124.38,0.00013994,2]
[352959922,1739461844231,-1076.04,0.00013994,2]
[352959924,1739461844242,-3970.78,0.00013994,2]
[352959926,1739461844252,-500.0,0.00013994,2]
[352959928,1739461844261,-500.0,0.00013994,2]
[352959962,1739461844271,-500.0,0.00013994,2]
[352959967,1739461844619,-500.0,0.00013994,2]
[352959970,1739461844640,-500.0,0.00013994,2]
[352959971,1739461844650,-500.0,0.00013994,2]
[352959972,1739461844660,-2432.59,0.00013994,2]
[352959973,1739461844670,-768.89,0.00013994,2]
[352959974,1739461844680,-519.78592491,0.00013994,2]
[352959975,1739461844689,-500.0,0.00013994,2]
[352959976,1739461844707,-542.74,0.00013994,2]
[352959977,1739461844717,-500.0,0.00013994,2]
[352959978,1739461844726,-3105.66,0.00013994,2]
[352959979,1739461844739,-1539.37,0.00013994,2]
[352959980,1739461844749,-8035.43,0.00013994,2]
[352959981,1739461844758,-500.0,0.00013994,2]
[352959982,1739461844768,-500.0,0.00013994,2]
[352959983,1739461844777,-4843.36,0.00013994,2]
[352959984,1739461844787,-500.0,0.00013994,2]
[352959985,1739461844796,-3370.24,0.00013994,2]
[352959986,1739461844806,-621.73,0.00013994,2]
[352959987,1739461844815,-557.6,0.00013994,2]
[352959988,1739461844824,-500.0,0.00013994,2]
[352959989,1739461844833,-500.0,0.00013994,2]
[352959990,1739461844843,-500.0,0.00013994,2]
[352959991,1739461844852,-2092.55,0.00013994,2]
[352959992,1739461844861,-991.67,0.00013994,2]
[352959993,1739461844870,-500.0,0.00013994,2]
[352959994,1739461844879,-771.84,0.00013994,2]
[352959995,1739461844888,-500.0,0.00013994,2]
[352959996,1739461844898,-1027.89,0.00013994,2]
[352959997,1739461844907,-2431.96,0.00013994,2]
[352959998,1739461844916,-500.0,0.00013994,2]
[352960000,1739461844926,-718.15,0.00013994,2]
[352960002,1739461844936,-500.0,0.00013994,2]
[352960004,1739461844945,-500.0,0.00013994,2]
[352960006,1739461844955,-2454.95,0.00013994,2]
[352960008,1739461844964,-500.0,0.00013994,2]
[352960010,1739461844974,-500.0,0.00013994,2]
[352960012,1739461844986,-2149.54,0.00013994,2]
[352960014,1739461844996,-500.0,0.00013994,2]
[352960016,1739461845006,-3908.11,0.00013994,2]
[352960018,1739461845015,-4060.53,0.00013994,2]
[352960020,1739461845024,-500.0,0.00013994,2]
[352960022,1739461845036,-500.0,0.00013994,2]
[352960024,1739461845047,-158.8345513,0.00013994,2]
[352960026,1739461845057,-500.0,0.00013994,2]
[352960027,1739461845066,-500.0,0.00013994,2]
[352960028,1739461845075,-2341.3,0.00013994,2]
[352960029,1739461845084,-1712.23,0.00013994,2]
[352960030,1739461845093,-500.0,0.00013994,2]
[352960031,1739461845102,-500.0,0.00013995,2]
[352960032,1739461845114,-500.0,0.00013995,2]
[352960033,1739461845124,-500.0,0.00013995,2]
[352960034,1739461845133,-500.0,0.00013995,2]
[352960035,1739461845142,-500.0,0.00013995,2]
[352960036,1739461845151,-500.0,0.00013995,2]
[352960037,1739461845160,-39.76964349,0.00013995,2]
[352960038,1739461845172,-319.74935769,0.00013995,2]
[352960039,1739461845183,-131.5247042,0.00013995,2]
[352960041,1739461845192,-500.0,0.00013995,2]
[352960042,1739461845202,-451.83108646,0.00013995,2]
[352960044,1739461845212,-500.0,0.00013995,2]
[352960046,1739461845221,-500.0,0.00013995,2]
[352960048,1739461845230,-500.0,0.00013995,2]
[352960050,1739461845242,-192.58421699,0.00013995,2]
[352960053,1739461845254,-134.9046703,0.00013995,2]
[352960055,1739461845263,-500.0,0.00013995,2]
[352960057,1739461845272,-500.0,0.00013995,2]
[352960059,1739461845282,-474.69214619,0.00013995,2]
[352960061,1739461845291,-534.24,0.00013995,2]
[352960063,1739461845300,-500.0,0.00013995,2]
[352960065,1739461845309,-500.0,0.00013995,2]
[352960067,1739461845319,-526.64,0.00013995,2]
[352960069,1739461845328,-669.87,0.00013995,2]
[352960070,1739461845338,-500.0,0.00013995,2]
[352960072,1739461845348,-630.97,0.00013995,2]
[352960074,1739461845358,-214.95307863,0.00013995,2]
[352960077,1739461845369,-285.04692137,0.00013995,2]
[352960079,1739461845379,-500.0,0.00013995,2]
[352960081,1739461845388,-500.0,0.00013995,2]
[352960083,1739461845397,-500.0,0.00013995,2]
[352960085,1739461845407,-534.41,0.00013995,2]
[352960087,1739461845416,-500.0,0.00013995,2]
[352960088,1739461845426,-500.0,0.00013995,2]
[352960090,1739461845435,-500.0,0.00013995,2]
[352960092,1739461845444,-500.0,0.00013995,2]
[352960094,1739461845454,-500.0,0.00013995,2]
[352960096,1739461845463,-445.35062049,0.00013995,2]
[352960099,1739461845475,-126.96937951,0.00013995,2]
[352960101,1739461845485,-929.9,0.00013995,2]
[352960103,1739461845495,-500.0,0.00013995,2]
[352960105,1739461845504,-500.0,0.00013995,2]
[352960107,1739461845513,-708.26,0.00013995,2]
[352960109,1739461845523,-500.0,0.00013995,2]
[352960111,1739461845532,-500.0,0.00013995,2]
[352960113,1739461845541,-821.41,0.00013995,2]
[352960114,1739461845551,-500.0,0.00013995,2]
[352960116,1739461845560,-500.0,0.00013995,2]
[352960118,1739461845570,-709.66,0.00013995,2]
[352960121,1739461845579,-500.0,0.00013995,2]
[352960122,1739461845588,-563.79,0.00013995,2]
[352960124,1739461845597,-500.0,0.00013995,2]
[352960126,1739461845606,-386.95729399,0.00013995,2]
[352960129,1739461845619,-113.04270601,0.00013995,2]
[352960131,1739461845629,-436.33929397,0.00013995,2]
[352960133,1739461845641,-63.66070603,0.00013995,2]
[352960135,1739461845650,-500.0,0.00013995,2]
[352960137,1739461845661,-517.95501135,0.00013995,2]
[352960139,1739461845671,-164.12494597,0.00013995,2]
[352960141,1739461845681,-500.0,0.00013995,2]
[352960143,1739461845690,-500.0,0.00013995,2]
[352960145,1739461845699,-235.00411483,0.00013995,2]
[352960156,1739461845805,-264.99588517,0.00013995,2]
[352960158,1739461845816,-513.0,0.00013995,2]
[352960159,1739461845826,-500.0,0.00013995,2]
[352960161,1739461845835,-500.0,0.00013995,2]
[352960162,1739461845844,-500.0,0.00013995,2]
[352960164,1739461845854,-500.0,0.00013995,2]
[352960165,1739461845864,-500.0,0.00013995,2]
[352960167,1739461845873,-500.0,0.00013995,2]
[352960168,1739461845882,-876.55,0.00013995,2]
[352960169,1739461845891,-500.0,0.00013995,2]
[352960171,1739461845901,-500.0,0.00013995,2]
[352960172,1739461845910,-500.0,0.00013995,2]
[352960174,1739461845920,-500.0,0.00013995,2]
[352960175,1739461845930,-815.39,0.00013995,2]
[352960177,1739461845939,-500.0,0.00013995,2]
[352960178,1739461845948,-630.39,0.00013995,2]
[352960180,1739461845958,-313.10881798,0.00013995,2]
[352960181,1739461845970,-186.89118202,0.00013995,2]
[352960183,1739461845979,-658.62,0.00013995,2]
[352960185,1739461845991,-500.0,0.00013995,2]
[352960186,1739461846001,-500.0,0.00013995,2]
[352960187,1739461846011,-879.38,0.00013995,2]
[352960189,1739461846020,-1491.44,0.00013995,2]
[352960190,1739461846032,-792.9,0.00013995,2]
[352960192,1739461846041,-500.0,0.00013995,2]
[352960193,1739461846051,-500.0,0.00013995,2]
[352960195,1739461846060,-1802.22,0.00013995,2]
[352960196,1739461846069,-500.0,0.00013995,2]
[352960198,1739461846080,-500.0,0.00013995,2]
[352960199,1739461846089,-844.01,0.00013995,2]
[352960201,1739461846099,-500.0,0.00013995,2]
[352960202,1739461846109,-230.94904324,0.00013995,2]
[352960203,1739461846119,-500.0,0.00013995,2]
[352960204,1739461846128,-500.0,0.00013995,2]
[352960205,1739461846138,-500.0,0.00013995,2]
[352960206,1739461846147,-500.0,0.00013995,2]
[352960207,1739461846156,-866.81400852,0.00013995,2]
[352960210,1739461846925,-3640.9,0.00013993,2]
[352960211,1739461846935,-0.92599148,0.00013995,2]
[352960212,1739461846945,-500.0,0.00013995,2]